bitfinex-derivatives/quotes_BNBF0:USTF0_20250101
["timestamp","ask_amount","ask_price","bid_price","bid_amount"]
[1735698579108,0.28152756,710.41,709.27,1.05658272]
[1735698580204,0.28152756,710.41,709.24,1.05658272]
[1735698582610,0.28152756,710.41,709.28,1.05658272]
[1735698583708,0.28152756,710.41,709.33,1.05658272]
[1735698584613,0.28152756,710.41,709.32,1.05658272]
[1735698585709,0.28152756,710.41,709.31,1.05658272]
[1735698585913,0.28152756,710.41,709.32,0.28196018]
[1735698586712,0.28152756,710.41,709.32,1.3385429]
[1735698587922,0.28152756,710.41,709.34,1.05658272]
[1735698588824,0.28152756,710.41,709.33,1.05658272]
[1735698589621,0.28152756,710.41,709.32,0.28196018]
[1735698590526,0.28152756,710.41,709.32,1.3385429]
[1735698591719,0.28152756,710.41,709.4,1.05658272]
[1735698592520,0.28152756,710.41,709.32,0.28196018]
[1735698592521,0.28152756,710.41,709.43,1.05658272]
[1735698594523,1.04908336,711.14,709.43,1.05658272]
[1735698594724,1.47032935,710.71,709.43,1.05658272]
[1735698594927,0.2592161,710.7,709.43,1.05658272]
[1735698595125,0.2592161,710.69,709.43,1.05658272]
[1735698595325,0.2592161,710.68,709.43,1.05658272]
[1735698595527,0.2592161,710.67,709.43,1.05658272]
[1735698595724,0.2592161,710.66,709.43,1.05658272]
[1735698595928,0.2592161,710.65,709.43,1.05658272]
[1735698596128,0.2592161,710.64,709.43,1.05658272]
[1735698596329,0.2592161,710.63,709.46,1.05658272]
[1735698596524,0.2592161,710.62,709.46,1.05658272]
[1735698596728,0.2592161,710.61,709.46,1.05658272]
[1735698596931,0.25920984,710.6,709.46,1.05658272]
[1735698597124,0.25920984,710.73,709.46,1.05658272]
[1735698597329,0.25920984,710.72,709.48,1.05658272]
[1735698597632,0.25920984,710.71,709.48,1.05658272]
[1735698597825,0.25920984,710.7,709.48,1.05658272]
[1735698598031,0.25920984,710.69,709.48,1.05658272]
[1735698598328,0.25920984,710.68,709.48,1.05658272]
[1735698598530,0.25920984,710.67,709.51,1.05658272]
[1735698598731,0.25920984,710.66,709.51,1.05658272]
[1735698598930,0.25920984,710.65,709.51,1.05658272]
[1735698599125,0.25920984,710.64,709.51,1.05658272]
[1735698599325,0.25920984,710.63,709.51,1.05658272]
[1735698599631,0.25921704,710.62,709.49,1.05658272]
[1735698599831,0.25921704,710.61,709.49,1.05658272]
[1735698600031,0.25921704,710.73,709.49,1.05658272]
[1735698600227,0.25921559,710.72,709.49,1.05658272]
[1735698600425,0.25921559,710.73,709.49,1.05658272]
[1735698600630,0.25921559,710.72,709.49,1.05658272]
[1735698600830,0.25921559,710.71,709.5,1.05658272]
[1735698601034,0.25921559,710.7,709.5,1.05658272]
[1735698601338,0.25921559,710.69,709.5,1.05658272]
[1735698601534,0.25921559,710.68,709.5,1.05658272]
[1735698601735,0.25921559,710.67,709.5,1.05658272]
[1735698601926,0.25921559,710.66,709.5,1.05658272]
[1735698602126,0.25921559,710.65,709.5,1.05658272]
[1735698602328,0.25921559,710.64,709.5,1.05658272]
[1735698602528,0.25921559,710.63,709.5,1.05658272]
[1735698602733,0.25921559,710.62,709.53,1.05658272]
[1735698603032,0.25921559,710.61,709.53,1.05658272]
[1735698603233,0.25921559,710.6,709.53,1.05658272]
[1735698603436,0.25921559,710.59,709.53,1.05658272]
[1735698603635,0.25921559,710.58,709.53,1.05658272]
[1735698603833,0.25921559,710.73,709.47,1.05658272]
[1735698604037,1.47028275,710.74,709.47,1.05658272]
[1735698604233,0.2592242,710.73,709.47,1.05658272]
[1735698604937,0.2592242,710.73,709.51,1.05658272]
[1735698606239,0.2592242,710.73,709.55,1.05658272]
[1735698607237,0.2592242,710.73,709.54,1.05658272]
[1735698608744,0.2592242,710.73,709.56,1.05658272]
[1735698609441,1.47028275,710.74,709.56,1.05658272]
[1735698609635,0.25923163,710.73,709.56,1.05658272]
[1735698610242,0.25923163,710.73,709.58,1.05658272]
[1735698611241,0.25923163,710.73,709.62,1.05658272]
[1735698612434,0.25923163,710.73,709.59,1.05658272]
[1735698613641,0.25923163,710.73,709.5,1.05658272]
[1735698614843,0.25925427,710.72,709.5,1.05658272]
[1735698615045,0.25925427,710.71,709.5,1.05658272]
[1735698615243,1.47028275,710.74,709.5,1.05658272]
[1735698615244,0.25925427,710.7,709.5,1.05658272]
[1735698615442,0.25925427,710.69,709.5,1.05658272]
[1735698615744,0.25925516,710.68,709.5,1.05658272]
[1735698615946,0.25925516,710.67,709.5,1.05658272]
[1735698616138,1.47028275,710.74,709.5,1.05658272]
[1735698616139,0.25925516,710.66,709.5,1.05658272]
[1735698616342,0.25925516,710.65,709.5,1.05658272]
[1735698616544,0.25925516,710.65,709.53,1.05658272]
[1735698616545,1.47032417,710.65,709.53,1.05658272]
[1735698617848,1.47032417,710.65,709.52,1.05658272]
[1735698619248,1.47032417,710.65,709.23,1.05541487]
[1735698619249,1.47032417,710.65,709.53,1.05658272]
[1735698619444,1.04908336,711.05,709.53,1.05658272]
[1735698619647,0.25920806,711.04,709.53,1.05658272]
[1735698619850,1.47020511,710.81,709.53,1.05658272]
[1735698620046,1.04908336,711.05,709.53,1.05658272]
[1735698620246,1.47013783,710.81,709.61,1.05658272]
[1735698620446,1.04908336,711.18,709.61,1.05658272]
[1735698620644,0.25919087,711.17,709.61,1.05658272]
[1735698621542,0.25919087,711.17,708.74,2.15550603]
[1735698621543,0.25919087,711.17,709.63,1.05658272]
[1735698621747,1.7290234,711.16,709.63,1.05658272]
[1735698621948,0.25919087,711.15,709.63,1.05658272]
[1735698622349,0.25919087,711.15,709.76,1.05658272]
[1735698622549,0.2591608,711.14,709.76,1.05658272]
[1735698622749,0.2591608,711.13,709.76,1.05658272]
[1735698622945,0.2591608,711.12,709.76,1.05658272]
[1735698623149,0.2591608,711.11,709.76,1.05658272]
[1735698623350,0.25915905,711.1,709.76,1.05658272]
[1735698623553,0.25915905,711.1,709.5,1.05541487]
[1735698623554,0.25915905,711.15,709.75,1.05658272]
[1735698623753,0.25915905,711.14,709.75,1.05658272]
[1735698623953,0.25915905,711.13,709.75,1.05658272]
[1735698624253,0.25915905,711.12,709.75,1.05658272]
[1735698624453,0.25915905,711.11,709.75,1.05658272]
[1735698624649,0.25915905,711.1,709.72,1.05658272]
[1735698624853,0.25915905,711.09,709.72,1.05658272]
[1735698625056,0.25915905,711.08,709.72,1.05658272]
[1735698625252,1.46983253,711.16,709.72,1.05658272]
[1735698625253,0.25912597,711.07,709.72,1.05658272]
[1735698625452,0.25912597,711.06,709.72,1.05658272]
[1735698625755,0.25912597,711.05,709.71,1.05658272]
[1735698625953,0.25912597,711.04,709.71,1.05658272]
[1735698626155,0.25912597,711.03,709.71,1.05658272]
[1735698626354,0.25912597,711.02,709.71,1.05658272]
[1735698626556,0.25912597,711.01,709.71,1.05658272]
[1735698626756,0.25912597,711.0,709.71,1.05658272]
[1735698626951,0.25912597,710.99,709.86,1.05658272]
[1735698627255,0.25912597,710.98,709.86,1.05658272]
[1735698627457,0.25912597,710.97,709.86,1.05658272]
[1735698627658,0.25912597,710.96,709.86,1.05658272]
[1735698627859,0.25912597,711.15,709.86,1.05658272]
[1735698628059,0.25912597,711.14,709.78,1.05658272]
[1735698628255,0.25912597,711.13,709.78,1.05658272]
[1735698628459,0.25912597,711.12,709.78,1.05658272]
[1735698628659,0.25912597,711.11,709.78,1.05658272]
[1735698628960,0.25912597,711.1,709.78,1.05658272]
[1735698629160,0.25912597,711.09,709.78,1.05658272]
[1735698629361,1.46983253,711.16,709.64,1.05658272]
[1735698629362,0.25912597,711.08,709.64,1.05658272]
[1735698629657,0.25912597,711.07,709.64,1.05658272]
[1735698629863,0.25912597,711.06,709.64,1.05658272]
[1735698630159,0.25912597,711.05,709.82,1.05658272]
[1735698630359,1.46983253,711.16,709.82,1.05658272]
[1735698630560,0.25911336,711.15,709.82,1.05658272]
[1735698631153,0.25911336,711.15,709.77,1.05658272]
[1735698632454,0.25911336,711.14,709.77,1.05658272]
[1735698632659,0.25911336,711.13,709.79,1.05658272]
[1735698632957,0.25911336,711.12,709.79,1.05658272]
[1735698633254,0.2590958,711.11,709.79,1.05658272]
[1735698633459,0.2590958,711.1,709.79,1.05658272]
[1735698633654,0.2590958,711.09,709.79,1.05658272]
[1735698633854,0.2590958,711.09,709.3,1.26690966]
[1735698633855,0.2590958,711.08,709.82,1.05658272]
[1735698634059,0.2590958,711.07,709.82,1.05658272]
[1735698634259,0.2590958,711.06,709.82,1.05658272]
[1735698634855,0.2590958,711.06,709.38,1.26690966]
[1735698634856,0.2590958,711.06,709.81,1.05658272]
[1735698635759,0.2590958,711.06,709.77,1.05658272]
[1735698636661,0.2590958,711.06,709.76,1.05658272]
[1735698637558,0.2590958,711.06,709.23,2.15550603]
[1735698637559,0.2590958,711.06,709.73,1.05658272]
[1735698638358,0.25910315,711.05,709.73,1.05658272]
[1735698638557,0.25910315,711.04,709.73,1.05658272]
[1735698638760,0.25910315,711.03,709.72,1.05658272]
[1735698639061,1.46951702,711.07,709.72,1.05658272]
[1735698639262,0.25910449,711.06,709.72,1.05658272]
[1735698641856,0.25910449,711.06,709.5,1.05541487]
[1735698641857,0.25910449,711.06,709.7,1.05658272]
[1735698643758,0.25910059,711.05,709.7,1.05658272]
[1735698644164,0.25910093,711.04,709.7,1.05658272]
[1735698648564,0.25910059,711.05,709.7,1.05658272]
[1735698649964,1.46951702,711.07,709.7,1.05658272]
[1735698652474,1.46951702,711.07,709.64,1.05658272]
[1735698653373,1.46951702,711.07,709.67,1.05658272]
[1735698654175,1.46951702,711.07,709.72,1.05658272]
[1735698655074,1.46951702,711.07,709.76,1.05658272]
[1735698655975,1.46951702,711.07,709.8,1.05658272]
[1735698657075,1.04908336,711.67,709.8,1.05658272]
[1735698657377,1.46947048,711.14,709.84,1.05658272]
[1735698657573,0.28103702,711.65,709.84,1.05658272]
[1735698657770,0.2590726,711.64,709.84,1.05658272]
[1735698658173,0.2590726,711.64,709.85,1.05658272]
[1735698658571,0.2590726,711.63,709.85,1.05658272]
[1735698658775,0.2590726,711.62,709.85,1.05658272]
[1735698658973,0.28105677,711.6,709.85,1.05658272]
[1735698659179,1.04908336,711.43,710.0,1.05658272]
[1735698659479,0.2590726,711.42,710.0,1.05658272]
[1735698659677,0.2590708,711.41,710.0,1.05658272]
[1735698659874,0.2590708,711.4,710.0,1.05658272]
[1735698660071,0.2590708,711.39,710.0,1.05658272]
[1735698660276,0.2590708,711.39,709.27,2.15550603]
[1735698660277,0.2590708,711.38,709.81,1.05658272]
[1735698660478,0.2590708,711.37,709.81,1.05658272]
[1735698660678,0.2590708,711.36,709.81,1.05658272]
[1735698660979,0.2590708,711.35,709.81,1.05658272]
[1735698661279,0.2590708,711.34,709.8,1.05658272]
[1735698661473,0.2590708,711.59,709.8,1.05658272]
[1735698661672,0.2590708,711.58,709.8,1.05658272]
[1735698661873,0.2590708,711.57,709.8,1.05658272]
[1735698662073,0.2590708,711.56,709.8,1.05658272]
[1735698662279,0.25908282,711.55,709.8,1.05658272]
[1735698662473,0.25908282,711.54,709.82,1.05658272]
[1735698662675,0.25908282,711.53,709.82,1.05658272]
[1735698662875,0.28105677,711.6,709.82,1.05658272]
[1735698662876,0.25908282,711.52,709.82,1.05658272]
[1735698663073,0.25908282,711.51,709.82,1.05658272]
[1735698663279,0.25908282,711.5,709.82,1.05658272]
[1735698663481,0.25908282,711.49,709.82,1.05658272]
[1735698663681,0.25908282,711.48,709.83,1.05658272]
[1735698663875,0.25908282,711.47,709.83,1.05658272]
[1735698664076,0.28105677,711.6,709.83,1.05658272]
[1735698664277,0.2590805,711.59,709.83,1.05658272]
[1735698666683,0.28105677,711.6,709.83,1.05658272]
[1735698666885,0.25908353,711.59,709.84,1.05658272]
[1735698667084,0.25908353,711.58,709.84,1.05658272]
[1735698667285,0.25908353,711.57,709.84,1.05658272]
[1735698667486,0.25908353,711.56,709.84,1.05658272]
[1735698667684,0.25908353,711.55,709.84,1.05658272]
[1735698667881,0.28105677,711.6,710.0,1.05658272]
[1735698667882,1.04908336,711.25,710.0,1.05658272]
[1735698668085,0.25908353,711.24,710.0,1.05658272]
[1735698669185,1.04908336,711.25,710.0,1.05658272]
[1735698669385,0.25914301,711.24,710.0,1.05658272]
[1735698670086,1.04908336,711.16,709.92,1.05658272]
[1735698670285,0.2591389,711.15,709.92,1.05658272]
[1735698670883,0.2591389,711.15,709.71,1.05658272]
[1735698671183,0.2591389,711.14,709.71,1.05658272]
[1735698671383,0.2591389,711.13,709.71,1.05658272]
[1735698671586,0.2591389,711.12,709.71,1.05658272]
[1735698671786,0.2591389,711.12,709.4,1.05541487]
[1735698671787,0.2591389,711.11,709.69,1.05658272]
[1735698671986,0.25914089,711.1,709.69,1.05658272]
[1735698672187,0.25914089,711.09,709.69,1.05658272]
[1735698672387,0.25914089,711.08,709.69,1.05658272]
[1735698672587,0.25914089,711.07,709.69,1.05658272]
[1735698672787,0.25914089,711.07,709.23,1.05525251]
[1735698672788,0.25914089,711.06,709.68,1.05658272]
[1735698672985,0.25914089,711.05,709.68,1.05658272]
[1735698673182,0.25914089,711.04,709.68,1.05658272]
[1735698673388,0.25914089,711.03,709.68,1.05658272]
[1735698673588,0.25914089,711.03,708.8,2.15550603]
[1735698673589,0.25914089,711.02,709.7,1.05658272]
[1735698673788,0.25914089,711.01,709.7,1.05658272]
[1735698673989,1.04908336,711.45,709.7,1.05658272]
[1735698674184,0.25913645,711.44,709.7,1.05658272]
[1735698674586,0.25913645,711.44,708.81,2.15550603]
[1735698674587,0.25913645,711.44,709.61,1.05658272]
[1735698674789,0.25913645,711.43,709.61,1.05658272]
[1735698674991,0.25913645,711.42,709.61,1.05658272]
[1735698675191,0.25913645,711.41,709.61,1.05658272]
[1735698675391,1.46928953,711.55,709.61,1.05658272]
[1735698675392,0.25913645,711.4,709.61,1.05658272]
[1735698675592,0.25913645,711.39,709.61,1.05658272]
[1735698675787,0.25913645,711.38,709.61,1.05658272]
[1735698675993,0.25913645,711.37,709.61,1.05658272]
[1735698676194,0.25913645,711.36,709.61,1.05658272]
[1735698676492,0.25913645,711.35,709.61,1.05658272]
[1735698676685,0.25913645,711.34,709.61,1.05658272]
[1735698676890,0.2811674,711.32,709.61,1.05658272]
[1735698677293,0.25914538,711.31,709.61,1.05658272]
[1735698677689,0.25914538,711.31,709.57,1.05658272]
[1735698677891,0.25914685,711.3,709.57,1.05658272]
[1735698678093,0.25914685,711.29,709.57,1.05658272]
[1735698678290,0.25914685,711.28,709.57,1.05658272]
[1735698678494,0.25914685,711.27,709.57,1.05658272]
[1735698678687,0.25914685,711.26,709.57,1.05658272]
[1735698678890,0.25914685,711.25,709.56,1.05658272]
[1735698679089,0.25914685,711.24,709.56,1.05658272]
[1735698679292,0.25914685,711.23,709.56,1.05658272]
[1735698679495,0.25914685,711.22,709.56,1.05658272]
[1735698679696,0.25914685,711.21,709.56,1.05658272]
[1735698679894,0.25915463,711.2,709.56,1.05658272]
[1735698680094,0.25915463,711.19,709.59,1.05658272]
[1735698680290,0.25915463,711.18,709.59,1.05658272]
[1735698680491,0.25915463,711.17,709.59,1.05658272]
[1735698680797,0.25915463,711.16,709.59,1.05658272]
[1735698680998,0.25915463,711.15,709.59,1.05658272]
[1735698681198,0.25915463,711.14,709.56,1.05658272]
[1735698681395,0.25915463,711.13,709.56,1.05658272]
[1735698681697,0.25915463,711.12,709.56,1.05658272]
[1735698681898,0.25915463,711.11,709.56,1.05658272]
[1735698682099,0.25915463,711.1,709.56,1.05658272]
[1735698682300,0.25915463,711.09,709.56,1.05658272]
[1735698682501,0.25916338,711.08,709.56,1.05658272]
[1735698682695,0.25916338,711.07,709.56,1.05658272]
[1735698682897,0.25916338,711.06,709.56,1.05658272]
[1735698683094,0.25916338,711.05,709.56,1.05658272]
[1735698683294,0.25916338,711.04,709.54,1.05658272]
[1735698683493,0.25916338,711.03,709.54,1.05658272]
[1735698683696,0.25916338,711.02,709.54,1.05658272]
[1735698683895,0.25916338,711.01,709.54,1.05658272]
[1735698684097,0.25916338,711.0,709.54,1.05658272]
[1735698684300,0.25916338,710.99,709.54,1.05658272]
[1735698684497,0.25916338,710.98,709.46,1.05658272]
[1735698684695,0.25916338,710.97,709.46,1.05658272]
[1735698684895,0.25916338,710.96,709.46,1.05658272]
[1735698685098,0.25919763,710.95,709.46,1.05658272]
[1735698685299,0.25919763,711.29,709.46,1.05658272]
[1735698685505,1.04908336,711.24,709.55,1.05658272]
[1735698685805,0.25919763,711.23,709.55,1.05658272]
[1735698686102,0.25919763,711.22,709.55,1.05658272]
[1735698686401,1.04908336,711.24,709.52,1.05658272]
[1735698686402,0.25919763,711.21,709.52,1.05658272]
[1735698686596,0.25919763,711.2,709.52,1.05658272]
[1735698686797,0.25919763,711.19,709.52,1.05658272]
[1735698686998,0.25919763,711.18,709.52,1.05658272]
[1735698687197,0.25919763,711.17,709.52,1.05658272]
[1735698687399,0.54042829,711.16,709.52,1.05658272]
[1735698687595,0.25919763,711.15,709.52,1.05658272]
[1735698688199,0.25919763,711.15,709.48,1.05658272]
[1735698688598,1.47001362,711.14,709.48,1.05658272]
[1735698688798,0.25919763,711.13,709.48,1.05658272]
[1735698689398,0.25919763,711.13,709.47,1.05658272]
[1735698690100,0.25920284,711.12,709.47,1.05658272]
[1735698690297,0.25920284,711.13,709.47,1.05658272]
[1735698690506,0.25920284,711.12,709.47,1.05658272]
[1735698690704,0.25920284,711.13,709.47,1.05658272]
[1735698690905,0.25920284,711.12,709.47,1.05658272]
[1735698691108,0.25920284,711.11,709.47,1.05658272]
[1735698691310,0.25920284,711.1,709.47,1.05658272]
[1735698691505,0.25920284,711.09,709.46,1.05658272]
[1735698691708,0.25920284,711.08,709.46,1.05658272]
[1735698691902,0.28127021,711.06,709.46,1.05658272]
[1735698692208,0.25920284,711.05,709.46,1.05658272]
[1735698692403,0.25920284,711.05,709.47,1.05658272]
[1735698692601,0.25920284,711.04,709.47,1.05658272]
[1735698692802,0.25920284,711.03,709.47,1.05658272]
[1735698693107,0.28128999,711.01,709.47,1.05658272]
[1735698693308,0.25921738,711.0,709.47,1.05658272]
[1735698693704,0.28130186,710.98,709.47,1.05658272]
[1735698693908,0.25921738,710.97,709.47,1.05658272]
[1735698694409,0.25921738,710.97,709.24,1.05541487]
[1735698694410,0.25921738,710.97,709.46,1.05658272]
[1735698695710,0.28130186,710.98,709.46,1.05658272]
[1735698695910,0.25922864,710.97,709.46,1.05658272]
[1735698696610,0.25922864,710.97,709.43,1.05658272]
[1735698696810,0.28131373,710.95,709.43,1.05658272]
[1735698697005,0.25922864,710.94,709.43,1.05658272]
[1735698697311,0.2813256,710.92,709.43,1.05658272]
[1735698697610,0.25922864,710.91,709.43,1.05658272]
[1735698698407,0.25922383,710.9,709.43,1.05658272]
[1735698698605,0.25922383,710.89,709.45,1.05658272]
[1735698698807,0.25922383,710.88,709.45,1.05658272]
[1735698699009,0.25922383,710.87,709.45,1.05658272]
[1735698699210,0.25922383,710.86,709.45,1.05658272]
[1735698699411,0.25922383,710.85,709.45,1.05658272]
[1735698699612,0.25922383,710.84,709.45,1.05658272]
[1735698699814,0.25922383,710.83,709.53,1.05658272]
[1735698700006,1.47019476,710.9,709.53,1.05658272]
[1735698700007,0.25922383,710.82,709.53,1.05658272]
[1735698700212,0.25922383,710.81,709.53,1.05658272]
[1735698700411,0.25922383,710.8,709.53,1.05658272]
[1735698700604,0.25922383,710.79,709.53,1.05658272]
[1735698700809,0.54060484,710.78,709.53,1.05658272]
[1735698701110,0.54060484,710.78,708.94,2.15550603]
[1735698701111,0.54059204,710.77,709.57,1.05658272]
[1735698701310,0.25920707,710.76,709.57,1.05658272]
[1735698702311,0.25920707,710.76,709.6,1.05658272]
[1735698703610,0.28138497,710.77,709.6,1.05658272]
[1735698703811,0.25917948,710.76,709.69,1.05658272]
[1735698705212,0.25917948,710.76,709.71,1.05658272]
[1735698706415,0.25918077,710.75,709.72,1.05658272]
[1735698706608,0.25918077,710.74,709.72,1.05658272]
[1735698706811,0.25918077,710.73,709.72,1.05658272]
[1735698707013,0.25918077,710.72,709.72,1.05658272]
[1735698707213,0.25918077,710.71,709.72,1.05658272]
[1735698707513,0.25918077,710.7,709.73,1.05658272]
[1735698707710,0.25918077,710.69,709.73,1.05658272]
[1735698708015,0.25918077,710.68,709.73,1.05658272]
[1735698708220,0.25918077,710.67,709.73,1.05658272]
[1735698708409,0.25918077,710.66,709.68,1.05658272]
[1735698708715,0.25918077,710.65,709.68,1.05658272]
[1735698708917,0.25918077,710.76,709.68,1.05658272]
[1735698709116,1.47018441,710.66,709.68,1.05658272]
[1735698709316,0.25918077,710.65,709.68,1.05658272]
[1735698709616,1.47024134,710.66,709.68,1.05658272]
[1735698709916,0.25921732,710.65,709.66,1.05658272]
[1735698710916,0.25921732,710.65,709.69,1.05658272]
[1735698711719,0.259219,710.64,709.69,1.05658272]
[1735698711919,0.259219,710.63,709.71,1.05658272]
[1735698712121,0.259219,710.62,709.71,1.05658272]
[1735698712314,0.259219,710.61,709.71,1.05658272]
[1735698712514,0.259219,710.6,709.71,1.05658272]
[1735698712714,0.259219,710.59,709.71,1.05658272]
[1735698712916,1.47024134,710.66,709.71,1.05658272]
[1735698713118,0.25926948,710.65,709.57,1.05658272]
[1735698713720,0.28143645,710.64,709.57,1.05658272]
[1735698713922,0.25926948,710.63,709.57,1.05658272]
[1735698714113,0.28144437,710.62,709.4,1.05658272]
[1735698714318,0.25927295,710.61,709.4,1.05658272]
[1735698715221,0.25927295,710.61,709.37,1.05658272]
[1735698716427,0.25927295,710.61,709.38,1.05658272]
[1735698717524,0.28144437,710.62,709.38,1.05658272]
[1735698717725,0.25931611,710.61,709.32,1.05658272]
[1735698719124,0.25931611,710.61,709.24,1.05658272]
[1735698719820,0.25931611,710.6,709.24,1.05658272]
[1735698720028,0.25931611,710.59,709.24,1.05658272]
[1735698720222,0.25931611,710.58,709.24,1.05658272]
[1735698720422,0.25931611,710.57,709.24,1.05658272]
[1735698720624,0.25931611,710.56,709.12,1.05658272]
[1735698721420,0.25938739,710.55,709.12,1.05658272]
[1735698721621,0.25938739,710.56,709.12,1.05658272]
[1735698721825,0.25938739,710.55,709.12,1.05658272]
[1735698722024,0.25938739,710.54,709.05,1.05658272]
[1735698722227,0.25938739,710.53,709.05,1.05658272]
[1735698722426,0.25938739,710.52,709.05,1.05658272]
[1735698722628,0.25938739,710.51,709.05,1.05658272]
[1735698722825,0.25938739,710.5,709.05,1.05658272]
[1735698723027,0.25938739,710.5,708.4,2.15550603]
[1735698723028,0.25938739,710.49,708.97,1.05658272]
[1735698723229,0.25938739,710.48,708.97,1.05658272]
[1735698723532,0.25938739,710.47,708.97,1.05658272]
[1735698723727,0.25938739,710.46,708.97,1.05658272]
[1735698724028,0.25938739,710.45,708.97,1.05658272]
[1735698724227,1.4709042,710.57,708.78,1.05658272]
[1735698724228,0.25938739,710.44,708.78,1.05658272]
[1735698724427,0.25938739,710.43,708.78,1.05658272]
[1735698724631,0.25938739,710.42,708.78,1.05658272]
[1735698724932,0.25938739,710.41,708.78,1.05658272]
[1735698725134,0.25938739,710.4,708.78,1.05658272]
[1735698725334,0.25938739,710.39,708.73,1.05658272]
[1735698725529,0.25938739,710.38,708.73,1.05658272]
[1735698725733,0.25938739,710.37,708.73,1.05658272]
[1735698725930,0.25938739,710.36,708.73,1.05658272]
[1735698726134,0.25938739,710.35,708.71,1.05658272]
[1735698726432,0.25938739,710.34,708.71,1.05658272]
[1735698726630,0.25939596,710.33,708.71,1.05658272]
[1735698726831,0.25939596,710.32,708.71,1.05658272]
[1735698727031,0.25939596,710.31,708.71,1.05658272]
[1735698727235,0.25939596,710.3,708.71,1.05658272]
[1735698727430,0.25939596,710.29,708.71,1.05658272]
[1735698727634,0.25939596,710.28,708.7,1.05658272]
[1735698727834,0.25939596,710.27,708.7,1.05658272]
[1735698728033,0.25939596,710.26,708.7,1.05658272]
[1735698728234,0.25939596,710.25,708.7,1.05658272]
[1735698728430,0.25939596,710.24,708.7,1.05658272]
[1735698728629,0.25939596,710.23,708.7,1.05658272]
[1735698728832,0.25939596,710.22,708.68,1.05658272]
[1735698729034,0.25939596,710.21,708.68,1.05658272]
[1735698729235,0.25938642,710.2,708.68,1.05658272]
[1735698729435,1.4709042,710.57,708.68,1.05658272]
[1735698729631,0.25938499,710.56,708.68,1.05658272]
[1735698730433,0.25936712,710.55,708.68,1.05658272]
[1735698730632,0.25936712,710.54,708.68,1.05658272]
[1735698730831,0.25936712,710.53,708.68,1.05658272]
[1735698731037,0.25936712,710.52,708.68,1.05658272]
[1735698731232,0.25936712,710.51,708.68,1.05658272]
[1735698731436,0.25936712,710.5,708.79,1.05658272]
[1735698731733,0.25936712,710.49,708.79,1.05658272]
[1735698731936,0.25936397,710.48,708.79,1.05658272]
[1735698732135,0.25936397,710.47,708.79,1.05658272]
[1735698732642,0.25934592,710.46,708.79,1.05658272]
[1735698732834,0.25934592,710.45,708.79,1.05658272]
[1735698733034,0.25934592,710.44,708.79,1.05658272]
[1735698733233,0.25934592,710.43,708.79,1.05658272]
[1735698733434,0.25934592,710.42,708.79,1.05658272]
[1735698733637,0.25934592,710.41,708.79,1.05658272]
[1735698733839,0.25934592,710.4,708.79,1.05658272]
[1735698734043,0.25934592,710.39,708.74,1.05658272]
[1735698734241,0.2593553,710.38,708.74,1.05658272]
[1735698734434,0.2593553,710.37,708.74,1.05658272]
[1735698734638,0.25934567,710.36,708.74,1.05658272]
[1735698734835,0.25934567,710.35,708.74,1.05658272]
[1735698735041,0.25934567,710.34,708.75,1.05658272]
[1735698735340,0.25934567,710.33,708.75,1.05658272]
[1735698735536,1.47117366,710.48,708.75,1.05658272]
[1735698735734,0.25934506,710.47,708.75,1.05658272]
[1735698736641,0.25934506,710.47,708.76,1.05658272]
[1735698736841,0.28150775,710.46,708.76,1.05658272]
[1735698737045,0.25934506,710.45,708.76,1.05658272]
[1735698737244,0.28151568,710.44,708.76,1.05658272]
[1735698737545,0.25934506,710.43,708.78,1.05658272]
[1735698738646,0.25934506,710.43,708.8,1.05658272]
[1735698739740,0.28151568,710.44,708.83,1.05658272]
[1735698739945,0.25933507,710.43,708.83,1.05658272]
[1735698740646,0.25934077,710.42,708.83,1.05658272]
[1735698740846,0.25934077,710.41,708.83,1.05658272]
[1735698741039,0.25934077,710.4,708.83,1.05658272]
[1735698741242,0.25934077,710.39,708.88,1.05658272]
[1735698741548,0.25934077,710.38,708.88,1.05658272]
[1735698741746,0.25934077,710.37,708.88,1.05658272]
[1735698741947,0.25934077,710.36,708.88,1.05658272]
[1735698742243,0.25934077,710.35,708.92,1.05658272]
[1735698742548,0.25934077,710.34,708.92,1.05658272]
[1735698742745,0.25934077,710.33,708.92,1.05658272]
[1735698742945,0.25934077,710.32,708.92,1.05658272]
[1735698743142,0.25934077,710.31,708.92,1.05658272]
[1735698743343,0.25934077,710.3,709.01,1.05658272]
[1735698743542,0.25934077,710.29,709.01,1.05658272]
[1735698743747,0.25934077,710.28,709.01,1.05658272]
[1735698744045,0.25932957,710.27,709.01,1.05658272]
[1735698744250,1.47107001,710.4,709.01,1.05658272]
[1735698744551,0.2593195,710.39,709.01,1.05658272]
[1735698744850,0.2593195,710.39,709.07,1.05658272]
[1735698745251,1.47107001,710.4,709.07,1.05658272]
[1735698745252,0.2593146,710.38,709.07,1.05658272]
[1735698745444,0.2593146,710.37,709.07,1.05658272]
[1735698745648,0.2593146,710.36,709.07,1.05658272]
[1735698745948,0.2593146,710.35,709.07,1.05658272]
[1735698746253,0.2593146,710.34,709.16,1.05658272]
[1735698746550,1.47107001,710.4,709.16,1.05658272]
[1735698746750,0.2593197,710.39,709.16,1.05658272]
[1735698747354,1.47107001,710.4,709.14,1.05658272]
[1735698747553,0.25933869,710.39,709.14,1.05658272]